[Event "Titled Tuesday Blitz November 15 Early 2022"]
[White "Izuzquiza Gonzalez, Javier"]
[Black "Atakishiyev, Elmar"]
[WhiteFideId "3101029"]
[BlackFideId "13410547"]
[WhiteElo "2034"]
[BlackElo "2194"]
[Result "0-1"]
[Round "01"]
[TimeControl "180+1"]
[Date "2022.11.16"]
[WhiteClock "0:00:03"]
[BlackClock "0:00:48"]

1. d4 {[%clk 0:02:59]}  Nf6 {[%clk 0:02:59]} 2. c4 {[%clk 0:03:00]}  g6 {[%clk 0:02:58]} 3. Nf3 {[%clk 0:03:00]}  Bg7 {[%clk 0:02:58]} 4. g3 {[%clk 0:03:01]}  O-O {[%clk 0:02:58]} 5. Bg2 {[%clk 0:03:01]}  d5 {[%clk 0:02:58]} 6. O-O {[%clk 0:03:01]}  Nc6 {[%clk 0:02:59]} 7. cxd5 {[%clk 0:02:56]}  Nxd5 {[%clk 0:03:00]} 8. Nc3 {[%clk 0:02:56]}  e5 {[%clk 0:03:00]} 9. Nxd5 {[%clk 0:02:52]}  e4 {[%clk 0:03:00]} 10. Ng5 {[%clk 0:02:43]}  Qxd5 {[%clk 0:02:58]} 11. Nxe4 {[%clk 0:02:40]}  Qxd4 {[%clk 0:02:58]} 12. Qb3 {[%clk 0:02:09]}  Qb4 {[%clk 0:02:21]} 13. Bf4 {[%clk 0:01:56]}  Qxb3 {[%clk 0:02:17]} 14. axb3 {[%clk 0:01:55]}  Nd4 {[%clk 0:02:15]} 15. Bxc7 {[%clk 0:01:43]}  Nxe2+ {[%clk 0:02:12]} 16. Kh1 {[%clk 0:01:42]}  Nd4 {[%clk 0:02:01]} 17. Nc5 {[%clk 0:01:34]}  a6 {[%clk 0:01:32]} 18. Rfd1 {[%clk 0:01:16]}  Ne6 {[%clk 0:01:30]} 19. Bd6 {[%clk 0:01:08]}  Nxc5 {[%clk 0:01:27]} 20. Bxc5 {[%clk 0:01:04]}  Re8 {[%clk 0:01:26]} 21. Bd4 {[%clk 0:01:01]}  Bg4 {[%clk 0:01:25]} 22. f3 {[%clk 0:00:53]}  Be6 {[%clk 0:01:22]} 23. Bxg7 {[%clk 0:00:51]}  Kxg7 {[%clk 0:01:23]} 24. f4 {[%clk 0:00:50]}  Rac8 {[%clk 0:01:18]} 25. Bxb7 {[%clk 0:00:46]}  Rc2 {[%clk 0:01:17]} 26. Rxa6 {[%clk 0:00:42]}  Rxb2 {[%clk 0:01:13]} 27. Rad6 {[%clk 0:00:21]}  Bg4 {[%clk 0:01:01]} 28. Rc1 {[%clk 0:00:10]}  Ree2 {[%clk 0:00:56]} 29. h4 {[%clk 0:00:10]}  Rxb3 {[%clk 0:00:52]} 30. Bd5 {[%clk 0:00:10]}  Rxg3 {[%clk 0:00:50]} 31. Bc4 {[%clk 0:00:03]}  Bf3# {[%clk 0:00:48]} 0-1


[Site "https://www.chess.com"]

[Event "Titled Tuesday Blitz November 15 Early 2022"]
[White "Jeet, Jain"]
[Black "Dubov, Daniil"]
[WhiteFideId "5073022"]
[BlackFideId "24126055"]
[WhiteElo "2067"]
[BlackElo "2791"]
[Result "0-1"]
[Round "01"]
[TimeControl "180+1"]
[Date "2022.11.15"]
[WhiteClock "0:00:12"]
[BlackClock "0:01:22"]

1. Nf3 {[%clk 0:02:58]}  Nf6 {[%clk 0:02:59]} 2. g3 {[%clk 0:02:57]}  b6 {[%clk 0:02:59]} 3. Bg2 {[%clk 0:02:58]}  Bb7 {[%clk 0:03:00]} 4. O-O {[%clk 0:02:58]}  c5 {[%clk 0:03:00]} 5. c4 {[%clk 0:02:58]}  g6 {[%clk 0:03:00]} 6. b3 {[%clk 0:02:57]}  Bg7 {[%clk 0:03:00]} 7. Bb2 {[%clk 0:02:57]}  O-O {[%clk 0:03:00]} 8. d4 {[%clk 0:02:55]}  cxd4 {[%clk 0:03:00]} 9. Nxd4 {[%clk 0:02:55]}  Bxg2 {[%clk 0:02:59]} 10. Kxg2 {[%clk 0:02:56]}  d5 {[%clk 0:02:56]} 11. cxd5 {[%clk 0:02:49]}  Nxd5 {[%clk 0:02:55]} 12. e4 {[%clk 0:02:19]}  Nb4 {[%clk 0:02:37]} 13. Qd2 {[%clk 0:01:58]}  N8c6 {[%clk 0:02:02]} 14. Nxc6 {[%clk 0:01:54]}  Nxc6 {[%clk 0:02:01]} 15. Bxg7 {[%clk 0:01:51]}  Kxg7 {[%clk 0:01:59]} 16. Qxd8 {[%clk 0:01:29]}  Rfxd8 {[%clk 0:01:58]} 17. Nc3 {[%clk 0:01:25]}  Rd2 {[%clk 0:01:54]} 18. Rfd1 {[%clk 0:01:24]}  Rad8 {[%clk 0:01:52]} 19. Nd5 {[%clk 0:01:12]}  Rb2 {[%clk 0:01:39]} 20. Rac1 {[%clk 0:01:11]}  Ne5 {[%clk 0:01:38]} 21. Nxe7 {[%clk 0:00:49]}  Rxd1 {[%clk 0:01:33]} 22. Rxd1 {[%clk 0:00:45]}  Ng4 {[%clk 0:01:34]} 23. Rd7 {[%clk 0:00:24]}  Rxf2+ {[%clk 0:01:31]} 24. Kg1 {[%clk 0:00:21]}  Rxa2 {[%clk 0:01:31]} 25. Nc6 {[%clk 0:00:20]}  Nxh2 {[%clk 0:01:29]} 26. Nxa7 {[%clk 0:00:18]}  Nf3+ {[%clk 0:01:28]} 27. Kf1 {[%clk 0:00:18]}  Nd2+ {[%clk 0:01:28]} 28. Ke2 {[%clk 0:00:17]}  Nxe4+ {[%clk 0:01:26]} 29. Kf3 {[%clk 0:00:17]}  Nd2+ {[%clk 0:01:25]} 30. Kg4 {[%clk 0:00:16]}  Nxb3 {[%clk 0:01:24]} 31. Rb7 {[%clk 0:00:16]}  Nc5 {[%clk 0:01:23]} 32. Rc7 {[%clk 0:00:16]}  h5+ {[%clk 0:01:22]} 33. Kh3 {[%clk 0:00:16]}  Ne4 {[%clk 0:01:21]} 34. Re7 {[%clk 0:00:15]}  Ng5+ {[%clk 0:01:21]} 35. Kh4 {[%clk 0:00:12]}  Nf3+ {[%clk 0:01:22]} 0-1


[Site "https://www.chess.com"]

[Event "Titled Tuesday Blitz November 15 Early 2022"]
[White "Jumabayev, Rinat"]
[Black "Jain, Naveen"]
[WhiteFideId "13702661"]
[BlackFideId "5003970"]
[WhiteElo "2561"]
[BlackElo "2036"]
[Result "1-0"]
[Round "01"]
[TimeControl "180+1"]
[Date "2022.11.16"]
[WhiteClock "0:00:31"]
[BlackClock "0:00:03"]

1. e4 {[%clk 0:02:56]}  Nf6 {[%clk 0:02:58]} 2. e5 {[%clk 0:02:56]}  Nd5 {[%clk 0:02:58]} 3. d4 {[%clk 0:02:57]}  d6 {[%clk 0:02:58]} 4. Nf3 {[%clk 0:02:58]}  dxe5 {[%clk 0:02:57]} 5. Nxe5 {[%clk 0:02:59]}  c6 {[%clk 0:02:57]} 6. Be2 {[%clk 0:02:59]}  Bf5 {[%clk 0:02:56]} 7. O-O {[%clk 0:02:56]}  Nd7 {[%clk 0:02:55]} 8. Nf3 {[%clk 0:02:56]}  h6 {[%clk 0:02:53]} 9. c4 {[%clk 0:02:55]}  N5b6 {[%clk 0:02:49]} 10. Nc3 {[%clk 0:02:55]}  e6 {[%clk 0:02:48]} 11. Bf4 {[%clk 0:02:51]}  Be7 {[%clk 0:02:46]} 12. Re1 {[%clk 0:02:51]}  O-O {[%clk 0:02:45]} 13. Qd2 {[%clk 0:02:51]}  Bf6 {[%clk 0:02:36]} 14. Rad1 {[%clk 0:02:49]}  Qc8 {[%clk 0:02:23]} 15. Qe3 {[%clk 0:02:31]}  Re8 {[%clk 0:02:12]} 16. Bd6 {[%clk 0:02:10]}  Be7 {[%clk 0:01:38]} 17. Bxe7 {[%clk 0:02:01]}  Rxe7 {[%clk 0:01:39]} 18. d5 {[%clk 0:02:00]}  cxd5 {[%clk 0:01:37]} 19. cxd5 {[%clk 0:02:01]}  Qc5 {[%clk 0:01:32]} 20. d6 {[%clk 0:01:59]}  Qxe3 {[%clk 0:01:27]} 21. fxe3 {[%clk 0:02:00]}  Ree8 {[%clk 0:01:27]} 22. Nd4 {[%clk 0:02:00]}  Bg6 {[%clk 0:01:20]} 23. Bf3 {[%clk 0:01:57]}  e5 {[%clk 0:01:12]} 24. Ndb5 {[%clk 0:01:53]}  e4 {[%clk 0:01:11]} 25. Be2 {[%clk 0:01:40]}  Rac8 {[%clk 0:00:48]} 26. Nxa7 {[%clk 0:01:29]}  Rc5 {[%clk 0:00:46]} 27. Rd4 {[%clk 0:01:23]}  f5 {[%clk 0:00:30]} 28. Nab5 {[%clk 0:01:16]}  Bf7 {[%clk 0:00:28]} 29. b4 {[%clk 0:01:13]}  Rcc8 {[%clk 0:00:23]} 30. Nc7 {[%clk 0:01:12]}  Red8 {[%clk 0:00:21]} 31. a4 {[%clk 0:01:10]}  Ne5 {[%clk 0:00:19]} 32. a5 {[%clk 0:00:54]}  Nbc4 {[%clk 0:00:18]} 33. Bxc4 {[%clk 0:00:53]}  Bxc4 {[%clk 0:00:14]} 34. b5 {[%clk 0:00:50]}  Bd3 {[%clk 0:00:13]} 35. N3d5 {[%clk 0:00:35]}  Rd7 {[%clk 0:00:10]} 36. Ne7+ {[%clk 0:00:32]}  Rxe7 {[%clk 0:00:08]} 37. dxe7 {[%clk 0:00:31]}  Rxc7 {[%clk 0:00:02]} 38. e8=Q+ {[%clk 0:00:31]}  Kh7 {[%clk 0:00:03]} 39. Qxe5 {[%clk 0:00:31]} 1-0


[Site "https://www.chess.com"]

[Event "Titled Tuesday Blitz November 15 Early 2022"]
[White "Kaidanov, Gregory"]
[Black "Manon-og, Ramon Jr."]
[WhiteFideId "2008564"]
[BlackFideId "5200776"]
[WhiteElo "2654"]
[BlackElo "2300"]
[Result "0-1"]
[Round "01"]
[TimeControl "180+1"]
[Date "2022.11.16"]
[WhiteClock "0:00:08"]
[BlackClock "0:00:15"]

1. Nf3 {[%clk 0:03:00]}  Nf6 {[%clk 0:02:59]} 2. g3 {[%clk 0:02:59]}  g6 {[%clk 0:02:58]} 3. Bg2 {[%clk 0:03:00]}  c6 {[%clk 0:02:55]} 4. b3 {[%clk 0:02:59]}  Bg7 {[%clk 0:02:55]} 5. Bb2 {[%clk 0:02:59]}  d5 {[%clk 0:02:56]} 6. O-O {[%clk 0:02:59]}  O-O {[%clk 0:02:56]} 7. c4 {[%clk 0:02:59]}  Bf5 {[%clk 0:02:50]} 8. d3 {[%clk 0:02:59]}  Nbd7 {[%clk 0:02:47]} 9. Nbd2 {[%clk 0:03:00]}  Re8 {[%clk 0:02:45]} 10. Nh4 {[%clk 0:02:59]}  Bg4 {[%clk 0:02:44]} 11. h3 {[%clk 0:02:58]}  Be6 {[%clk 0:02:44]} 12. Qc2 {[%clk 0:02:51]}  Nf8 {[%clk 0:02:43]} 13. e4 {[%clk 0:02:47]}  Qd7 {[%clk 0:02:40]} 14. Kh2 {[%clk 0:02:46]}  Rad8 {[%clk 0:02:36]} 15. Rad1 {[%clk 0:02:34]}  dxe4 {[%clk 0:02:29]} 16. dxe4 {[%clk 0:02:32]}  Qd3 {[%clk 0:02:27]} 17. Qc1 {[%clk 0:02:30]}  Bh6 {[%clk 0:02:17]} 18. f4 {[%clk 0:02:26]}  Bg7 {[%clk 0:01:56]} 19. e5 {[%clk 0:02:17]}  Nh5 {[%clk 0:01:54]} 20. Ne4 {[%clk 0:01:55]}  Qe2 {[%clk 0:01:38]} 21. Rde1 {[%clk 0:01:53]}  Qd3 {[%clk 0:01:37]} 22. Rd1 {[%clk 0:01:47]}  Qe2 {[%clk 0:01:37]} 23. Rxd8 {[%clk 0:01:41]}  Rxd8 {[%clk 0:01:36]} 24. Rf2 {[%clk 0:01:41]}  Qd1 {[%clk 0:01:28]} 25. Qxd1 {[%clk 0:01:41]}  Rxd1 {[%clk 0:01:29]} 26. g4 {[%clk 0:01:38]}  f5 {[%clk 0:00:59]} 27. exf6 {[%clk 0:01:36]}  Nxf6 {[%clk 0:00:58]} 28. Ng5 {[%clk 0:01:29]}  Bxg4 {[%clk 0:00:54]} 29. Nhf3 {[%clk 0:00:58]}  Bf5 {[%clk 0:00:38]} 30. Ne5 {[%clk 0:00:58]}  h6 {[%clk 0:00:27]} 31. Ngf3 {[%clk 0:00:56]}  Ne4 {[%clk 0:00:28]} 32. Re2 {[%clk 0:00:56]}  Ne6 {[%clk 0:00:24]} 33. Nh4 {[%clk 0:00:44]}  Nd2 {[%clk 0:00:24]} 34. Nhxg6 {[%clk 0:00:33]}  Bxg6 {[%clk 0:00:21]} 35. Nxg6 {[%clk 0:00:33]}  Bxb2 {[%clk 0:00:22]} 36. Rxe6 {[%clk 0:00:32]}  Kf7 {[%clk 0:00:20]} 37. f5 {[%clk 0:00:32]}  Nf1+ {[%clk 0:00:19]} 38. Bxf1 {[%clk 0:00:26]}  Rxf1 {[%clk 0:00:20]} 39. Ne5+ {[%clk 0:00:25]}  Bxe5+ {[%clk 0:00:19]} 40. Rxe5 {[%clk 0:00:26]}  Kf6 {[%clk 0:00:20]} 41. Re6+ {[%clk 0:00:25]}  Kf7 {[%clk 0:00:21]} 42. Re5 {[%clk 0:00:25]}  Rf2+ {[%clk 0:00:21]} 43. Kg3 {[%clk 0:00:24]}  Rxa2 {[%clk 0:00:22]} 44. Re6 {[%clk 0:00:19]}  Rb2 {[%clk 0:00:22]} 45. Rxh6 {[%clk 0:00:18]}  Rxb3+ {[%clk 0:00:22]} 46. Kg4 {[%clk 0:00:19]}  Rc3 {[%clk 0:00:23]} 47. Rh7+ {[%clk 0:00:19]}  Kf6 {[%clk 0:00:23]} 48. Rh6+ {[%clk 0:00:20]}  Kf7 {[%clk 0:00:24]} 49. Rh7+ {[%clk 0:00:20]}  Kf6 {[%clk 0:00:24]} 50. Rh6+ {[%clk 0:00:20]}  Kg7 {[%clk 0:00:24]} 51. Re6 {[%clk 0:00:19]}  Kf7 {[%clk 0:00:24]} 52. h4 {[%clk 0:00:18]}  Rxc4+ {[%clk 0:00:24]} 53. Kg5 {[%clk 0:00:19]}  Rc1 {[%clk 0:00:23]} 54. Rh6 {[%clk 0:00:19]}  Rg1+ {[%clk 0:00:23]} 55. Kf4 {[%clk 0:00:19]}  a5 {[%clk 0:00:23]} 56. Rh8 {[%clk 0:00:17]}  a4 {[%clk 0:00:21]} 57. Ra8 {[%clk 0:00:17]}  Rh1 {[%clk 0:00:20]} 58. Kg5 {[%clk 0:00:16]}  Ra1 {[%clk 0:00:19]} 59. h5 {[%clk 0:00:16]}  a3 {[%clk 0:00:20]} 60. h6 {[%clk 0:00:16]}  a2 {[%clk 0:00:20]} 61. h7 {[%clk 0:00:16]}  Rg1+ {[%clk 0:00:20]} 62. Kf4 {[%clk 0:00:15]}  Rh1 {[%clk 0:00:20]} 63. Rxa2 {[%clk 0:00:15]}  Rxh7 {[%clk 0:00:20]} 64. Rb2 {[%clk 0:00:15]}  b5 {[%clk 0:00:18]} 65. Rc2 {[%clk 0:00:15]}  Rh6 {[%clk 0:00:17]} 66. Kg5 {[%clk 0:00:16]}  Rd6 {[%clk 0:00:16]} 67. Rh2 {[%clk 0:00:17]}  Rd5 {[%clk 0:00:16]} 68. Rh7+ {[%clk 0:00:17]}  Ke8 {[%clk 0:00:16]} 69. Rh8+ {[%clk 0:00:16]}  Kd7 {[%clk 0:00:17]} 70. Kg6 {[%clk 0:00:14]}  b4 {[%clk 0:00:17]} 71. Rh7 {[%clk 0:00:14]}  Kd6 {[%clk 0:00:18]} 72. Rh8 {[%clk 0:00:11]}  b3 {[%clk 0:00:18]} 73. Rb8 {[%clk 0:00:11]}  Rb5 {[%clk 0:00:18]} 74. Rd8+ {[%clk 0:00:11]}  Kc7 {[%clk 0:00:18]} 75. Rd1 {[%clk 0:00:11]}  b2 {[%clk 0:00:19]} 76. Rb1 {[%clk 0:00:12]}  c5 {[%clk 0:00:19]} 77. Kf7 {[%clk 0:00:12]}  Kd7 {[%clk 0:00:20]} 78. Rd1+ {[%clk 0:00:11]}  Kc7 {[%clk 0:00:19]} 79. Rb1 {[%clk 0:00:11]}  c4 {[%clk 0:00:19]} 80. Kxe7 {[%clk 0:00:11]}  c3 {[%clk 0:00:20]} 81. f6 {[%clk 0:00:11]}  Rf5 {[%clk 0:00:18]} 82. f7 {[%clk 0:00:09]}  Rxf7+ {[%clk 0:00:19]} 83. Kxf7 {[%clk 0:00:09]}  c2 {[%clk 0:00:19]} 84. Rxb2 {[%clk 0:00:09]}  c1=Q {[%clk 0:00:19]} 85. Rf2 {[%clk 0:00:09]}  Qc4+ {[%clk 0:00:18]} 86. Kg6 {[%clk 0:00:09]}  Qg4+ {[%clk 0:00:16]} 87. Kf7 {[%clk 0:00:08]}  Qh5+ {[%clk 0:00:15]} 88. Kf8 {[%clk 0:00:07]}  Qc5+ {[%clk 0:00:14]} 89. Kg7 {[%clk 0:00:08]}  Qxf2 {[%clk 0:00:15]} 0-1


[Site "https://www.chess.com"]

[Event "Titled Tuesday Blitz November 15 Early 2022"]
[White "Kaminski, Victor"]
[Black "Papasimakopoulos, Alexandros"]
[WhiteFideId "1131630"]
[BlackFideId "4244125"]
[WhiteElo "2181"]
[BlackElo "2365"]
[Result "0-1"]
[Round "01"]
[TimeControl "180+1"]
[Date "2022.11.16"]
[WhiteClock "0:00:01"]
[BlackClock "0:00:50"]

1. d4 {[%clk 0:02:49]}  e6 {[%clk 0:03:00]} 2. c4 {[%clk 0:02:48]}  Nf6 {[%clk 0:03:00]} 3. g3 {[%clk 0:02:48]}  Bb4+ {[%clk 0:03:00]} 4. Bd2 {[%clk 0:02:40]}  Be7 {[%clk 0:03:00]} 5. Bg2 {[%clk 0:02:40]}  d5 {[%clk 0:03:01]} 6. Nf3 {[%clk 0:02:40]}  O-O {[%clk 0:03:01]} 7. O-O {[%clk 0:02:40]}  Ne4 {[%clk 0:03:00]} 8. Be1 {[%clk 0:02:30]}  c6 {[%clk 0:02:56]} 9. Qc2 {[%clk 0:02:13]}  f5 {[%clk 0:02:49]} 10. e3 {[%clk 0:02:07]}  Bd7 {[%clk 0:02:49]} 11. a3 {[%clk 0:01:52]}  Be8 {[%clk 0:02:48]} 12. Bb4 {[%clk 0:01:47]}  Nd7 {[%clk 0:02:48]} 13. Bxe7 {[%clk 0:01:45]}  Qxe7 {[%clk 0:02:49]} 14. Nc3 {[%clk 0:01:37]}  Bh5 {[%clk 0:02:47]} 15. Ne5 {[%clk 0:01:27]}  Nxe5 {[%clk 0:02:45]} 16. dxe5 {[%clk 0:01:28]}  Qc5 {[%clk 0:02:39]} 17. Nxe4 {[%clk 0:00:55]}  dxe4 {[%clk 0:02:34]} 18. Qc3 {[%clk 0:00:48]}  Rfd8 {[%clk 0:02:11]} 19. b4 {[%clk 0:00:45]}  Qe7 {[%clk 0:01:59]} 20. Rfc1 {[%clk 0:00:34]}  Rd3 {[%clk 0:01:59]} 21. Qb2 {[%clk 0:00:29]}  Rad8 {[%clk 0:01:59]} 22. Bf1 {[%clk 0:00:29]}  Rd2 {[%clk 0:01:57]} 23. Rc2 {[%clk 0:00:29]}  R2d7 {[%clk 0:01:54]} 24. Qc3 {[%clk 0:00:17]}  Bd1 {[%clk 0:01:53]} 25. Rb2 {[%clk 0:00:11]}  b6 {[%clk 0:01:49]} 26. Raa2 {[%clk 0:00:11]}  c5 {[%clk 0:01:23]} 27. Rd2 {[%clk 0:00:10]}  Bf3 {[%clk 0:01:21]} 28. h3 {[%clk 0:00:02]}  g5 {[%clk 0:01:12]} 29. Rxd7 {[%clk 0:00:01]}  Qxd7 {[%clk 0:01:11]} 30. Rb2 {[%clk 0:00:02]}  Qd1 {[%clk 0:01:06]} 31. bxc5 {[%clk 0:00:01]}  bxc5 {[%clk 0:01:04]} 32. Qc2 {[%clk 0:00:02]}  Qxc2 {[%clk 0:00:52]} 33. Rxc2 {[%clk 0:00:02]}  Rd1 {[%clk 0:00:53]} 34. g4 {[%clk 0:00:01]}  fxg4 {[%clk 0:00:50]} 35. hxg4 {[%clk 0:00:02]}  Bxg4 {[%clk 0:00:50]} 36. Rb2 {[%clk 0:00:01]}  Bf3 {[%clk 0:00:50]} 0-1


[Site "https://www.chess.com"]

[Event "Titled Tuesday Blitz November 15 Early 2022"]
[White "Kirillov, Dmitry"]
[Black "Pichot, Alan"]
[WhiteFideId "34180572"]
[BlackFideId "110973"]
[WhiteElo "2095"]
[BlackElo "2560"]
[Result "0-1"]
[Round "01"]
[TimeControl "180+1"]
[Date "2022.11.16"]
[WhiteClock "0:00:19"]
[BlackClock "0:00:54"]

1. e4 {[%clk 0:02:47]}  c5 {[%clk 0:02:58]} 2. Nc3 {[%clk 0:02:30]}  a6 {[%clk 0:02:57]} 3. g3 {[%clk 0:02:28]}  g6 {[%clk 0:02:51]} 4. Bg2 {[%clk 0:02:29]}  Bg7 {[%clk 0:02:51]} 5. d3 {[%clk 0:02:30]}  Nc6 {[%clk 0:02:51]} 6. Nge2 {[%clk 0:02:30]}  d6 {[%clk 0:02:52]} 7. Be3 {[%clk 0:02:30]}  Nf6 {[%clk 0:02:52]} 8. h3 {[%clk 0:02:27]}  O-O {[%clk 0:02:52]} 9. O-O {[%clk 0:02:27]}  Rb8 {[%clk 0:02:50]} 10. Qd2 {[%clk 0:02:25]}  b5 {[%clk 0:02:50]} 11. f4 {[%clk 0:02:23]}  b4 {[%clk 0:02:50]} 12. Nd1 {[%clk 0:02:22]}  Bd7 {[%clk 0:02:45]} 13. g4 {[%clk 0:02:18]}  Ne8 {[%clk 0:02:45]} 14. f5 {[%clk 0:02:18]}  Ne5 {[%clk 0:02:44]} 15. Qe1 {[%clk 0:02:01]}  a5 {[%clk 0:02:42]} 16. Qh4 {[%clk 0:01:57]}  e6 {[%clk 0:02:39]} 17. Qxd8 {[%clk 0:01:56]}  Rxd8 {[%clk 0:02:39]} 18. fxe6 {[%clk 0:01:43]}  fxe6 {[%clk 0:02:37]} 19. Rxf8+ {[%clk 0:01:42]}  Kxf8 {[%clk 0:02:37]} 20. Nf2 {[%clk 0:01:42]}  Nc7 {[%clk 0:02:33]} 21. Rf1 {[%clk 0:01:42]}  Kg8 {[%clk 0:02:28]} 22. g5 {[%clk 0:01:40]}  Nb5 {[%clk 0:02:26]} 23. h4 {[%clk 0:01:38]}  a4 {[%clk 0:02:25]} 24. Bh3 {[%clk 0:01:37]}  a3 {[%clk 0:02:17]} 25. b3 {[%clk 0:01:36]}  Re8 {[%clk 0:02:09]} 26. Ng4 {[%clk 0:01:34]}  Rf8 {[%clk 0:01:14]} 27. Nf6+ {[%clk 0:01:27]}  Bxf6 {[%clk 0:01:14]} 28. gxf6 {[%clk 0:01:28]}  Kf7 {[%clk 0:01:11]} 29. d4 {[%clk 0:01:22]}  cxd4 {[%clk 0:01:09]} 30. Nxd4 {[%clk 0:01:23]}  Nc3 {[%clk 0:01:10]} 31. Bd2 {[%clk 0:01:08]}  Rc8 {[%clk 0:01:03]} 32. h5 {[%clk 0:00:46]}  Nxa2 {[%clk 0:00:57]} 33. hxg6+ {[%clk 0:00:41]}  hxg6 {[%clk 0:00:58]} 34. Nf3 {[%clk 0:00:28]}  Nxf3+ {[%clk 0:00:57]} 35. Rxf3 {[%clk 0:00:29]}  Rxc2 {[%clk 0:00:58]} 36. Rf2 {[%clk 0:00:20]}  Nc3 {[%clk 0:00:55]} 37. Bxc3 {[%clk 0:00:20]}  Rxf2 {[%clk 0:00:54]} 38. Kxf2 {[%clk 0:00:19]}  bxc3 {[%clk 0:00:54]} 0-1


[Site "https://www.chess.com"]

[Event "Titled Tuesday Blitz November 15 Early 2022"]
[White "Kopczynski, Michal"]
[Black "Bortnyk, Olexandr"]
[WhiteFideId "1124200"]
[BlackFideId "14120828"]
[WhiteElo "2235"]
[BlackElo "2723"]
[Result "0-1"]
[Round "01"]
[TimeControl "180+1"]
[Date "2022.11.15"]
[WhiteClock "0:00:41"]
[BlackClock "0:02:17"]

1. e4 {[%clk 0:02:59]}  Nf6 {[%clk 0:02:58]} 2. e5 {[%clk 0:02:58]}  Nd5 {[%clk 0:02:59]} 3. d4 {[%clk 0:02:58]}  d6 {[%clk 0:02:59]} 4. exd6 {[%clk 0:02:59]}  exd6 {[%clk 0:02:59]} 5. Bd3 {[%clk 0:02:58]}  Be7 {[%clk 0:02:59]} 6. c4 {[%clk 0:02:58]}  Nb6 {[%clk 0:02:58]} 7. Nc3 {[%clk 0:02:58]}  O-O {[%clk 0:02:56]} 8. Nge2 {[%clk 0:02:57]}  c6 {[%clk 0:02:55]} 9. O-O {[%clk 0:02:57]}  Na6 {[%clk 0:02:55]} 10. a3 {[%clk 0:02:56]}  d5 {[%clk 0:02:53]} 11. c5 {[%clk 0:02:55]}  Nd7 {[%clk 0:02:53]} 12. Bf4 {[%clk 0:02:50]}  Nc7 {[%clk 0:02:53]} 13. Qc2 {[%clk 0:02:44]}  g6 {[%clk 0:02:52]} 14. Rfe1 {[%clk 0:02:39]}  Ne6 {[%clk 0:02:51]} 15. Bh6 {[%clk 0:02:38]}  Re8 {[%clk 0:02:52]} 16. Nd1 {[%clk 0:02:22]}  Bf6 {[%clk 0:02:47]} 17. Be3 {[%clk 0:02:14]}  b6 {[%clk 0:02:47]} 18. b4 {[%clk 0:02:07]}  bxc5 {[%clk 0:02:47]} 19. bxc5 {[%clk 0:02:07]}  Ndxc5 {[%clk 0:02:47]} 20. dxc5 {[%clk 0:02:02]}  Bxa1 {[%clk 0:02:47]} 21. Nb2 {[%clk 0:01:51]}  Bxb2 {[%clk 0:02:45]} 22. Qxb2 {[%clk 0:01:52]}  Ba6 {[%clk 0:02:38]} 23. Bxa6 {[%clk 0:01:48]}  Qa5 {[%clk 0:02:38]} 24. Bd2 {[%clk 0:01:21]}  Qxa6 {[%clk 0:02:38]} 25. Ng3 {[%clk 0:01:13]}  Qd3 {[%clk 0:02:28]} 26. Bh6 {[%clk 0:01:01]}  Qd4 {[%clk 0:02:24]} 27. Qb7 {[%clk 0:00:53]}  Nxc5 {[%clk 0:02:17]} 28. Rxe8+ {[%clk 0:00:43]}  Rxe8 {[%clk 0:02:18]} 29. Qb1 {[%clk 0:00:41]}  Nd3 {[%clk 0:02:17]} 0-1


[Site "https://www.chess.com"]

[Event "Titled Tuesday Blitz November 15 Early 2022"]
[White "Kopylov, Alexander A."]
[Black "Sarkar, Justin"]
[WhiteFideId "4164857"]
[BlackFideId "2010011"]
[WhiteElo "2436"]
[BlackElo "2239"]
[Result "1-0"]
[Round "01"]
[TimeControl "180+1"]
[Date "2022.11.16"]
[WhiteClock "0:01:53"]
[BlackClock "0:00:01"]

1. e4 {[%clk 0:03:00]}  c5 {[%clk 0:02:53]} 2. Nf3 {[%clk 0:03:00]}  e6 {[%clk 0:02:52]} 3. g3 {[%clk 0:03:00]}  Nc6 {[%clk 0:02:43]} 4. Bg2 {[%clk 0:03:00]}  d5 {[%clk 0:02:38]} 5. exd5 {[%clk 0:02:59]}  exd5 {[%clk 0:02:37]} 6. O-O {[%clk 0:03:00]}  Nf6 {[%clk 0:02:31]} 7. Re1+ {[%clk 0:02:58]}  Be7 {[%clk 0:02:30]} 8. d4 {[%clk 0:02:57]}  O-O {[%clk 0:02:28]} 9. Nc3 {[%clk 0:02:53]}  Bg4 {[%clk 0:02:16]} 10. dxc5 {[%clk 0:02:46]}  Bxc5 {[%clk 0:02:02]} 11. h3 {[%clk 0:02:46]}  Be6 {[%clk 0:01:56]} 12. Na4 {[%clk 0:02:36]}  Bd6 {[%clk 0:01:31]} 13. Nc3 {[%clk 0:02:31]}  Bb4 {[%clk 0:01:24]} 14. a3 {[%clk 0:02:23]}  Bxc3 {[%clk 0:01:20]} 15. bxc3 {[%clk 0:02:24]}  h6 {[%clk 0:01:10]} 16. Nd4 {[%clk 0:02:23]}  Nxd4 {[%clk 0:01:02]} 17. Qxd4 {[%clk 0:02:19]}  Rc8 {[%clk 0:00:38]} 18. Qxa7 {[%clk 0:02:16]}  Rxc3 {[%clk 0:00:37]} 19. Qxb7 {[%clk 0:02:16]}  Rxc2 {[%clk 0:00:33]} 20. a4 {[%clk 0:02:13]}  Qc8 {[%clk 0:00:20]} 21. Qxc8 {[%clk 0:02:11]}  Rfxc8 {[%clk 0:00:21]} 22. a5 {[%clk 0:02:03]}  Ra8 {[%clk 0:00:16]} 23. a6 {[%clk 0:01:59]}  Rc6 {[%clk 0:00:03]} 24. a7 {[%clk 0:01:58]}  Rc7 {[%clk 0:00:02]} 25. Be3 {[%clk 0:01:58]}  Ne4 {[%clk 0:00:02]} 26. Reb1 {[%clk 0:01:54]}  Kh7 {[%clk 0:00:01]} 27. Rb8 {[%clk 0:01:53]} 1-0


[Site "https://www.chess.com"]

[Event "Titled Tuesday Blitz November 15 Early 2022"]
[White "Koridze, Lile"]
[Black "Narayanan, Srinath"]
[WhiteFideId "13612514"]
[BlackFideId "5018420"]
[WhiteElo "2050"]
[BlackElo "2459"]
[Result "0-1"]
[Round "01"]
[TimeControl "180+1"]
[Date "2022.11.16"]
[WhiteClock "0:00:47"]
[BlackClock "0:00:37"]

1. d4 {[%clk 0:02:54]}  Nf6 {[%clk 0:02:58]} 2. c4 {[%clk 0:02:54]}  e6 {[%clk 0:02:56]} 3. Nf3 {[%clk 0:02:52]}  d5 {[%clk 0:02:55]} 4. g3 {[%clk 0:02:49]}  h6 {[%clk 0:02:43]} 5. Bg2 {[%clk 0:02:48]}  Bd6 {[%clk 0:02:42]} 6. O-O {[%clk 0:02:48]}  O-O {[%clk 0:02:42]} 7. Qc2 {[%clk 0:02:46]}  Nc6 {[%clk 0:02:41]} 8. Nbd2 {[%clk 0:02:36]}  e5 {[%clk 0:02:36]} 9. dxe5 {[%clk 0:02:30]}  Nxe5 {[%clk 0:02:34]} 10. Nxe5 {[%clk 0:02:30]}  Bxe5 {[%clk 0:02:34]} 11. cxd5 {[%clk 0:02:28]}  Nxd5 {[%clk 0:02:35]} 12. Nc4 {[%clk 0:02:27]}  Bf6 {[%clk 0:02:21]} 13. Rd1 {[%clk 0:02:25]}  Be6 {[%clk 0:02:20]} 14. a3 {[%clk 0:02:16]}  b5 {[%clk 0:01:49]} 15. e4 {[%clk 0:02:15]}  bxc4 {[%clk 0:01:48]} 16. exd5 {[%clk 0:02:15]}  Bg4 {[%clk 0:01:47]} 17. f3 {[%clk 0:02:06]}  Bh5 {[%clk 0:01:42]} 18. Qxc4 {[%clk 0:02:06]}  Rb8 {[%clk 0:01:42]} 19. Qe2 {[%clk 0:01:28]}  Re8 {[%clk 0:01:41]} 20. Qf2 {[%clk 0:01:27]}  a5 {[%clk 0:01:37]} 21. a4 {[%clk 0:01:21]}  Rb4 {[%clk 0:01:33]} 22. Ra3 {[%clk 0:01:20]}  Qb8 {[%clk 0:01:02]} 23. b3 {[%clk 0:01:15]}  Rxb3 {[%clk 0:00:58]} 24. Ra2 {[%clk 0:01:12]}  Qb4 {[%clk 0:00:54]} 25. Bf4 {[%clk 0:01:04]}  Rb1 {[%clk 0:00:44]} 26. Rd2 {[%clk 0:01:01]}  Bc3 {[%clk 0:00:42]} 27. Rd3 {[%clk 0:00:55]}  Bg6 {[%clk 0:00:42]} 28. Bf1 {[%clk 0:00:46]}  Bxd3 {[%clk 0:00:37]} 29. Rxd3 {[%clk 0:00:47]}  Ree1 {[%clk 0:00:37]} 0-1


[Site "https://www.chess.com"]